Cogmind - Beta 14 @@@ ROGUE MODE // 2024.10.14 @ 22:29:13 Player: Cmdr.Laserstrahl Result: Destroyed by P-60 Hacker with Shock Rifle Performance ------------- Evolutions (4) 2000 Regions Visited (9) 1800 Robots Destroyed (146) 730 Value Destroyed (4384) 4384 Prototype IDs (33) 660 Alien Tech Used (0) 0 Bonus (490) 490 TOTAL SCORE: 10064 Bonus ------- High Alert Combat Kills 190 Aligned with FarCom 300 Cogmind --------- Core Integrity 0/850 Matter 290/300 Energy 39/100 System Corruption 4% Temperature Cool (0) Movement Flying (50) Location -6/Factory Parts ------- > --- POWER (2) -------- (None) > --- PROPULSION (4) --- Flying Fortress v7 > --- UTILITY (7) ------ High-capacity Storage Unit Improved Signal Interpreter Core Analyzer ECM Suite Reaction Control System Cloaking Device Improved Light Armor Plating > --- WEAPON (2) ------- Axe > --- INVENTORY (20) --- Improved Ion Engine Micro Nuclear Core Compact Wheel Improved Heat Sink Advanced Heat Sink Medium Storage Unit Trap Scanner Force Field Hacking Suite Hacking Suite Heavy Ion Cannon Advanced EMP Blaster Missile Launcher Heavy Missile Launcher Axe Peak State ------------ > --- POWER ------------ Improved Deuterium Engine > --- PROPULSION ------- Flying Fortress v7 > --- UTILITY ---------- High-capacity Storage Unit Improved Signal Interpreter Improved Targeting Computer Transmission Jammer Improved Medium Armor Plating > --- WEAPON ----------- Heavy Particle Cannon Autogun > --- INVENTORY -------- Trap Scanner Core Analyzer ECM Suite Reaction Control System Improved Light Armor Plating Hacking Suite Hacking Suite Hacking Suite Heavy Ion Cannon Heavy Ion Cannon Advanced Assault Cannon Gauss Cannon Advanced EMP Blaster Mini Grenade Launcher Heavy Missile Launcher Axe [Rating: 60] Favorites ----------- Power Light Ion Engine Engine Light Ion Engine Power Core Light Nuclear Core Propulsion Compact Wheel Leg Aluminum Leg Wheel Compact Wheel Hover Unit Improved Hover Unit Flight Unit Flying Fortress v7 Utility High-capacity Storage Unit Device Transmission Jammer Storage High-capacity Storage Unit Processor Improved Targeting Computer Hackware System Shield Protection Improved Medium Armor Plating Weapon Advanced Beam Cannon Energy Gun EM Pulse Gun Energy Cannon Advanced Beam Cannon Ballistic Gun Improved Assault Rifle Ballistic Cannon Advanced Assault Cannon Launcher Missile Launcher Slashing Weapon Axe Build | -11 -10 -10 -9 -9 -9 -8 -8 -7 -6 ------- Run | Yrd Mat Min Mat Min Exi Min Mat Fac Fac Slots Evolved 8 | . . . 2 . . . 2 2 2 Power 1 | . . . . . . . . . 1 Propulsion 2 | . . . . . . . 1 1 . Utility 5 | . . . 2 . . . 1 1 1 Weapon . | . . . . . . . . . . Parts Attached 148 | 7 5 8 16 6 4 . 24 47 31 Power 12 | 1 1 . 2 . 1 . 1 3 3 Engine 10 | 1 . . 2 . 1 . . 3 3 Core 2 | . 1 . . . . . 1 . . Reactor . | . . . . . . . . . . Propulsion 30 | 2 . 1 2 . 2 . 4 13 6 Treads . | . . . . . . . . . . Leg 1 | . . . . . . . . 1 . Wheel 26 | 2 . 1 2 . 2 . 4 10 5 Hover 1 | . . . . . . . . 1 . Flight 2 | . . . . . . . . 1 1 Utility 57 | 2 4 4 5 5 1 . 10 15 11 Device 32 | 1 2 3 2 4 1 . 8 5 6 Storage 4 | 1 2 . 1 . . . . . . Processor 8 | . . . 1 1 . . 2 3 1 Hackware 2 | . . . . . . . . 1 1 Protection 11 | . . 1 1 . . . . 6 3 Artifact . | . . . . . . . . . . Weapon 49 | 2 . 3 7 1 . . 9 16 11 Energy Gun 10 | 2 . 2 3 . . . 1 . 2 Energy Cannon 14 | . . . 3 . . . 2 6 3 Ballistic Gun 5 | . . 1 1 . . . . 1 2 Ballistic Cannon 8 | . . . . 1 . . 3 3 1 Launcher 8 | . . . . . . . 3 4 1 Special Weapon . | . . . . . . . . . . Impact Weapon . | . . . . . . . . . . Slashing Weapon 4 | . . . . . . . . 2 2 Piercing Weapon . | . . . . . . . . . . Special Melee Weapon . | . . . . . . . . . . Unidentified Prototypes 6 | . . . 3 1 . . 1 . 1 Corrupted Parts 1 | 1 . . . . . . . . . System Corruption 1 | 1 . . . . . . . . . Parts Lost 55 | . . . 5 1 . . 6 18 25 Power 7 | . . . 1 . . . . 2 4 Propulsion 22 | . . . 1 . . . 3 10 8 Utility 14 | . . . 1 1 . . 2 4 6 Weapon 12 | . . . 2 . . . 1 2 7 Highest Loss Streak 12 | . . . 5 1 . . 4 9 12 To Critical Strikes . | . . . . . . . . . . Average Slot Usage (%) 91 | . 100 100 98 99 100 100 97 86 77 Engine 6 | . 13 . 4 11 11 11 3 6 4 Core 2 | . . 14 6 . . . 5 . . Wheel 20 | . 28 28 21 22 22 22 26 17 14 Device 11 | . 19 11 20 18 11 11 16 5 8 Storage 8 | . 8 14 11 11 11 11 9 7 6 Processor 15 | . . . 11 14 22 22 18 19 14 Hackware 2 | . . . . . . . . 1 8 Protection 4 | . . 2 . . . . . 8 5 Energy Gun 3 | . 28 27 8 . . . . . 2 Energy Cannon 6 | . . . 7 11 11 11 7 6 1 Ballistic Gun 1 | . . . 5 8 . . . . 1 Ballistic Cannon 4 | . . . . 2 11 11 8 4 2 Peak Build Rating 60 | 9 10 10 17 26 21 21 33 60 59 Average Rating 28 | 4 8 9 14 19 19 21 26 33 45 On Entrance 17 | . 9 10 10 17 17 21 21 30 41 Naked Turns . | . . . . . . . . . . Heaviest Build 73 | 15 20 20 57 57 58 58 62 72 73 Greatest Support 58 | 26 26 26 26 26 26 26 42 58 58 Greatest Overweight (x) 22 | . . . 3 2 2 2 5 22 17 Average Overweight (x) 1 | . . . 1 1 2 2 1 1 . Largest Inventory Capacity 20 | 8 10 10 20 20 20 20 20 20 20 Average Capacity 18 | 5 7 10 17 20 20 20 20 20 20 Most Carried 20 | 5 10 10 20 20 20 20 20 20 20 Average Carried 17 | 3 7 9 16 19 19 20 19 19 17 Final Capacity 20 | 8 10 10 20 20 20 20 20 20 20 Final Carried 20 | 5 10 10 20 20 20 20 20 20 15 Class Distribution -------------------- 53% | Mutant 36% | Scavenger-Mutant 7% | Hacker-Mutant Dominant Class ---------------- Mutant | -10/Materials Mutant | -10/Mines Scavenger-Mutant | -9/Materials Scavenger-Mutant | -9/Mines Mutant | -9/Exiles Mutant | -8/Mines Mutant | -8/Materials Mutant | -7/Factory Hacker-Mutant | -6/Factory Resources | -11 -10 -10 -9 -9 -9 -8 -8 -7 -6 ----------- Run | Yrd Mat Min Mat Min Exi Min Mat Fac Fac Matter Collected 2731 | 270 56 70 192 107 60 . 520 902 554 Remotely . | . . . . . . . . . . Salvage Created 5805 | 139 366 132 1229 161 34 . 1164 1553 1027 Parts 325 | 8 25 13 72 12 5 . 75 73 42 Haulers Intercepted 10 | . 1 . 2 . . . 3 3 1 Recyclers Shooed 8 | . 2 . . . . . . 2 4 Parts Field Recycled . | . . . . . . . . . . Retrieved Matter . | . . . . . . . . . . Parts Self-Destructed . | . . . . . . . . . . Prevented . | . . . . . . . . . . Kills | -11 -10 -10 -9 -9 -9 -8 -8 -7 -6 ------- Run | Yrd Mat Min Mat Min Exi Min Mat Fac Fac Combat Hostiles Destroyed 85 | . 5 5 14 3 2 . 19 23 14 Melee 5 | . . . . . . . . . 5 Guns 24 | . 5 5 10 . . . 1 . 3 Cannons 41 | . . . 4 3 2 . 10 16 6 AOE 12 | . . . . . . . 5 7 . Classes Destroyed 17 | 2 6 . 2 . 1 . 4 2 . Worker 13 | . 1 . 1 1 . . . 6 4 Builder 3 | . . . 1 . . . 1 . 1 Tunneler 6 | 3 . . . 1 . . 1 1 . Hauler 10 | . 1 . 2 . . . 3 3 1 Recycler 12 | 1 . . 3 . . . 1 5 2 Mechanic 2 | . . . . . . . 2 . . Operator 6 | . 1 . 2 . . . 1 2 . Watcher 9 | . 2 . 4 . . . 1 2 . Swarmer 11 | . 1 3 . . 1 . . 6 . Grunt 49 | . 4 2 9 3 . . 10 12 9 Duelist 2 | . . . . . . . . 2 . Sentry 13 | . . . 5 . . . 5 1 2 Demolisher 1 | . . . . . 1 . . . . Specialist 2 | . . . . . . . 2 . . Hunter 3 | . . . . . . . 1 . 2 Programmer 3 | . . . . . . . . 2 1 Heavy 1 | . . . . . . . 1 . . Best Kill Streak 7 | 3 4 3 6 7 2 . 6 6 4 Combat Bots Only 6 | . 2 3 5 6 2 . 5 6 2 Max Kills in Single Turn 3 | 1 1 1 2 1 1 . 3 3 2 Gunslinging 1 | . . . 1 . . . . . . Exploded 3 | . . . . . . . 3 3 . Melee 1 | . . . . . . . . . 1 Uniques/NPCs Destroyed . | . . . . . . . . . . Combat | -11 -10 -10 -9 -9 -9 -8 -8 -7 -6 -------- Run | Yrd Mat Min Mat Min Exi Min Mat Fac Fac Hostile Shots Fired 717 | . 18 15 96 15 22 . 93 149 309 Missed 213 | . 8 4 39 2 6 . 28 41 85 Damage Taken 7681 | . 100 127 677 171 214 . 1060 1820 3512 Core 1453 | . 10 6 65 21 23 . 220 245 863 Absorbed by Shields 346 | . . . . . 26 . 252 68 . Regen/Repaired (Parts) 428 | . . . . . . . 272 156 . Core Remaining (%) 78 | 100 . 93 . . . 72 60 65 . Volleys Fired 360 | 10 22 11 59 6 5 . 73 106 68 Largest 2 | 2 2 2 2 2 2 . 2 2 2 Hottest 134 | 80 80 80 101 107 107 . 112 123 134 Shots Fired 655 | 20 44 22 116 12 10 . 135 183 113 Gun 234 | 20 44 22 72 5 . . 6 16 49 Cannon 399 | . . . 44 7 10 . 116 161 61 Launcher 22 | . . . . . . . 13 6 3 Special . | . . . . . . . . . . Kinetic 247 | . . . 32 6 5 . 63 80 61 Thermal 235 | . . . 19 6 5 . 59 97 49 Explosive 4 | . . . . . . . . 4 . Electromagnetic 169 | 20 44 22 65 . . . 13 2 3 Robot Hit Streak 18 | 3 7 3 18 10 1 . 11 15 9 Robot Miss Streak 7 | 3 2 3 4 . 3 . 7 3 4 Penetration Max 1 | . . . . . . . . . 1 Secondary Targets 4 | . 1 1 2 . . . . . . Max Gunslinging Chain 1 | . 1 1 1 . . . . . . Shots Hit Robots 429 | 11 30 11 79 8 3 . 83 110 94 Core Hits 221 | 4 14 8 39 5 3 . 41 64 43 Critical Kills 2 | . . . 1 . . . 1 . . Critical Parts Destroyed 1 | . . . 1 . . . . . . Critical Strikes 13 | . . . 2 . . . 4 3 4 Burn 1 | . . . . . . . 1 . . Meltdown 1 | . . . . . . . 1 . . Destroy 2 | . . . 2 . . . . . . Blast 8 | . . . . . . . 2 3 3 Sever 1 | . . . . . . . . . 1 Melee Attacks 31 | . . . . . . . . 3 28 Impact . | . . . . . . . . . . Slashing 31 | . . . . . . . . 3 28 Piercing . | . . . . . . . . . . Sneak Attacks 4 | . . . . . . . . . 4 Combat Hostiles . | . . . . . . . . . . Follow-up Attacks . | . . . . . . . . . . Damage Inflicted 12419 | 153 451 135 1650 156 67 . 2953 3461 3393 Guns 2488 | 153 451 135 826 12 . . 57 155 699 Cannons 5965 | . . . 598 144 67 . 1780 2428 948 Explosions 3199 | . . . 226 . . . 1116 878 979 Melee 767 | . . . . . . . . . 767 Ramming . | . . . . . . . . . . Kinetic 3328 | . . . 258 31 67 . 981 1057 934 Thermal 4774 | . . . 430 125 . . 1142 1526 1551 Explosive 491 | . . . . . . . . 491 . Electromagnetic 3059 | 153 451 135 962 . . . 830 387 141 Impact . | . . . . . . . . . . Slashing 767 | . . . . . . . . . 767 Piercing . | . . . . . . . . . . Highest Corruption 4 | 1 1 1 . . . . 1 1 4 Average Corruption 1 | 1 1 1 . . . . 1 1 4 Corruption Purged . | . . . . . . . . . . Corruption Blocked . | . . . . . . . . . . Effects 24 | . 2 1 . . . . 2 15 4 Message Errors 5 | . . 1 . . . . . 2 2 Matter Fused 4 | . 1 . . . . . . 2 1 Heat Flow Errors 1 | . . . . . . . . 1 . Energy Discharges 4 | . 1 . . . . . . 2 1 Parts Rejected 1 | . . . . . . . . 1 . Data Loss (minor) 1 | . . . . . . . . 1 . Data Loss (major) 3 | . . . . . . . 1 2 . Misfires 3 | . . . . . . . 1 2 . Weapon Failures 2 | . . . . . . . . 2 . Overload Shots . | . . . . . . . . . . Overflow Damage 436 | . . . 1 . . . 41 70 324 Projectiles 111 | . . . 1 . . . 40 70 . Explosions 252 | . . . . . . . 1 . 251 Melee 73 | . . . . . . . . . 73 Knockbacks 20 | . . . . . . . 4 10 6 Impact . | . . . . . . . . . . Kinetic 19 | . . . . . . . 4 9 6 Secondary 1 | . . . . . . . . 1 . Self-Inflicted Damage 67 | . . . 9 . . . 40 18 . Shots 4 | . . . 1 . . . 2 1 . Rammed . | . . . . . . . . . . Targets Rammed . | . . . . . . . . . . Kicked . | . . . . . . . . . . Crushed . | . . . . . . . . . . Highest Temperature 325 | 88 188 258 198 39 168 . 325 270 222 Average Temperature 67 | 32 58 136 53 23 71 . 83 65 77 Received Heat Transfer 2298 | . 36 69 351 93 28 . 355 745 621 Siege Activations . | . . . . . . . . . . Robots Corrupted 2 | . . . . . . . 2 . . Combat Hostiles 2 | . . . . . . . 2 . . Parts Fried 19 | 1 . . 7 . . . 9 2 . Impact Corruptions . | . . . . . . . . . . Robots Melted 1 | . . . . . . . 1 . . Combat Hostiles 1 | . . . . . . . 1 . . Parts Melted 4 | . . . . . . . 2 1 1 Heat Transferred 6989 | . . . 670 222 . . 2065 2294 1738 Parts Sabotaged . | . . . . . . . . . . Parts Stolen . | . . . . . . . . . . Parts Stripped . | . . . . . . . . . . Power Chain Reactions 7 | . . . 4 . . . 3 . . Alert | -11 -10 -10 -9 -9 -9 -8 -8 -7 -6 ------- Run | Yrd Mat Min Mat Min Exi Min Mat Fac Fac Peak Influence 600 | 20 221 205 448 244 . . 600 496 477 Initial 242 | . 13 85 79 174 . . . 207 242 Average 253 | 7 107 115 273 235 . . 245 291 295 Maximum Alert Level 2 | . 1 1 2 1 . . 2 2 2 Low Security (%) 36 | 100 76 89 25 3 . 100 58 30 15 Level 1 40 | . 23 10 73 96 . . 6 27 71 Level 2 22 | . . . 1 . . . 35 41 13 Level 3 . | . . . . . . . . . . Level 4 . | . . . . . . . . . . Level 5 . | . . . . . . . . . . High Security . | . . . . . . . . . . Max Security . | . . . . . . . . . . Squads Dispatched 28 | . 1 . 5 . . . 7 5 10 Investigation 4 | . . . 1 . . . . 1 2 Extermination 4 | . . . . . . . . 2 2 Reinforcement 14 | . 1 . 4 . . . 4 2 3 Assault 1 | . . . . . . . 1 . . Garrison 5 | . . . . . . . 2 . 3 Intercept . | . . . . . . . . . . Searches Triggered . | . . . . . . . . . . Construction Impeded 3 | . . . 1 . . . 1 . 1 Haulers Reinforced 2 | . . . . . . . . . 2 Active Scanning Responses . | . . . . . . . . . . Cargo Convoy Interrupts . | . . . . . . . . . . Stealth | -11 -10 -10 -9 -9 -9 -8 -8 -7 -6 --------- Run | Yrd Mat Min Mat Min Exi Min Mat Fac Fac Distress Signals 5 | . 1 . 2 . . . 2 . . Communications Jammed 1 | . . . . . . . . 1 . Distress Signals 1 | . . . . . . . . 1 . Times Spotted 145 | . 10 5 22 3 9 . 45 32 19 Peak Tracking Total 9 | . 3 3 7 3 8 . 9 4 6 Tactical Retreats 8 | . . . 1 . . . 4 2 1 Traps | -11 -10 -10 -9 -9 -9 -8 -8 -7 -6 ------- Run | Yrd Mat Min Mat Min Exi Min Mat Fac Fac Traps Triggered 5 | . . . . . . . 1 3 1 Indirectly . | . . . . . . . . . . Trap Hack Attempts . | . . . . . . . . . . Triggered . | . . . . . . . . . . Disarmed . | . . . . . . . . . . Reprogrammed 4 | . . . 4 . . . . . . Reused 1 | . . . 1 . . . . . . Traps Extracted . | . . . . . . . . . . Installed . | . . . . . . . . . . Triggered 1 | . . . 1 . . . . . . Machines | -11 -10 -10 -9 -9 -9 -8 -8 -7 -6 ---------- Run | Yrd Mat Min Mat Min Exi Min Mat Fac Fac Machines Disabled 20 | . 1 . 1 . . . 2 8 8 Max in Single Turn 6 | . 1 . 1 . . . 1 3 6 Garrison Access 1 | . . . . . . . . 1 . Machines Repaired . | . . . . . . . . . . Machines Dismantled . | . . . . . . . . . . Machines Sabotaged . | . . . . . . . . . . Overloaded Fab Kills . | . . . . . . . . . . Hacking | -11 -10 -10 -9 -9 -9 -8 -8 -7 -6 --------- Run | Yrd Mat Min Mat Min Exi Min Mat Fac Fac Machines Accessed 35 | . 4 . 6 . 1 . 8 10 6 Terminals 20 | . 3 . 3 . . . 6 5 3 Fabricators 2 | . . . . . . . . 1 1 Repair Stations 5 | . 1 . . . . . 2 2 . Recycling Units 2 | . . . 1 . . . . 1 . Scanalyzers 4 | . . . 2 . . . . . 2 Garrison Access 1 | . . . . . . . . 1 . Total Hacks 107 | . 11 . 22 . 1 . 29 21 23 Successful 65 | . 7 . 17 . 1 . 21 7 12 Failed 42 | . 4 . 5 . . . 8 14 11 Catastrophic 5 | . 1 . 1 . . . 1 1 1 Database Lockouts . | . . . . . . . . . . Manual 46 | . 7 . 5 . 1 . 17 8 8 Terminals 60 | . 10 . 8 . . . 22 9 11 Fabricators 5 | . . . . . . . . 2 3 Repair Stations 15 | . 1 . . . . . 7 7 . Recycling Units 3 | . . . 2 . . . . 1 . Scanalyzers 21 | . . . 12 . . . . . 9 Garrison Access 2 | . . . . . . . . 2 . Terminal Hacks 19 | . 3 . 2 . 1 . 9 2 2 Prototype ID Bank 2 | . . . . . . . 2 . . Level Access Points 1 | . . . . . . . . . 1 Terminal Index 5 | . 1 . . . . . 3 . 1 Alert Level 1 | . . . . . . . . 1 . Unreport Threat 1 | . . . . . . . 1 . . Locate Traps 3 | . 1 . 1 . . . 1 . . Reprogram Traps 1 | . . . 1 . . . . . . Dispatch Records 1 | . . . . . . . 1 . . Hauler Manifests 2 | . . . . . . . 1 1 . Zone Layout 1 | . 1 . . . . . . . . Derelict Proto ID Bank 1 | . . . . . 1 . . . . Fabricator Hacks 2 | . . . . . . . . . 2 Load Schematic 1 | . . . . . . . . . 1 Build 1 | . . . . . . . . . 1 Repair Station Hacks 10 | . 1 . . . . . 6 3 . Scan Component 5 | . . . . . . . 3 2 . Repair 4 | . . . . . . . 3 1 . Refit 1 | . 1 . . . . . . . . Recycling Unit Hacks 2 | . . . 2 . . . . . . Report Inventory 1 | . . . 1 . . . . . . Retrieve Components 1 | . . . 1 . . . . . . Scanalyzer 16 | . . . 10 . . . . . 6 Insert Component 8 | . . . 5 . . . . . 3 Analyze 8 | . . . 5 . . . . . 3 Garrison Access Hacks 1 | . . . . . . . . 1 . Seal Access 1 | . . . . . . . . 1 . Unauthorized Hacks 15 | . 3 . 3 . . . 6 1 2 Terminals 14 | . 3 . 2 . . . 6 1 2 Botnet 14 | . 3 . 2 . . . 6 1 2 Fabricators . | . . . . . . . . . . Repair Stations . | . . . . . . . . . . Recycling Units . | . . . . . . . . . . Scanalyzers 1 | . . . 1 . . . . . . Extract 1 | . . . 1 . . . . . . Garrison Access . | . . . . . . . . . . Data Cores Recovered 2 | . . . 1 . . . . 1 . Used 1 | . . . 1 . . . . . . Hacking Detections 32 | . 4 . 5 . . . 7 10 6 Full Trace Events 2 | . . . . . . . . . 2 Feedback Events . | . . . . . . . . . . Feedback Blocked . | . . . . . . . . . . Robot Schematics Acquired . | . . . . . . . . . . Robots Built . | . . . . . . . . . . Authchips . | . . . . . . . . . . Time . | . . . . . . . . . . Total Robot Build Rating . | . . . . . . . . . . Part Schematics Acquired 16 | . . . 13 . . . . . 3 Parts Built 1 | . . . . . . . . . 1 Authchips . | . . . . . . . . . . Time 99 | . . . . . . . . . 99 Total Part Build Rating 2 | . . . . . . . . . 2 Parts Repaired 4 | . . . . . . . 3 1 . Time 156 | . . . . . . . 134 22 . Parts Recycled . | . . . . . . . . . . Recycled Matter . | . . . . . . . . . . Retrieved Matter . | . . . . . . . . . . Retrieved Components 2 | . . . 2 . . . . . . Parts Scanalyzed 7 | . . . 4 . . . . . 3 Part Schematics Acquired 7 | . . . 4 . . . . . 3 Parts Damaged . | . . . . . . . . . . Bothacking | -11 -10 -10 -9 -9 -9 -8 -8 -7 -6 ------------ Run | Yrd Mat Min Mat Min Exi Min Mat Fac Fac Used RIF Installer . | . . . . . . . . . . Robots Hacked . | . . . . . . . . . . Non-combat . | . . . . . . . . . . Combat . | . . . . . . . . . . Robot Hacks Applied . | . . . . . . . . . . Relay Couplers Released . | . . . . . . . . . . Fabnet Peak Effective % . | . . . . . . . . . . Robots Rewired . | . . . . . . . . . . Allies Hacked . | . . . . . . . . . . Hacks Repelled . | . . . . . . . . . . Allies | -11 -10 -10 -9 -9 -9 -8 -8 -7 -6 -------- Run | Yrd Mat Min Mat Min Exi Min Mat Fac Fac Total Allies 2 | . . . . 2 . . . . . Largest Group 2 | . . . . 2 2 . . . . Highest-Rated Group 58 | . . . . 58 58 . . . . Highest-Rated Ally 31 | . . . . 31 31 . . . . Total Orders . | . . . . . . . . . . Ally Attacks . | . . . . . . . . . . Total Damage . | . . . . . . . . . . Kills . | . . . . . . . . . . Allies Corrupted . | . . . . . . . . . . Allies Melted . | . . . . . . . . . . Intel | -11 -10 -10 -9 -9 -9 -8 -8 -7 -6 ------- Run | Yrd Mat Min Mat Min Exi Min Mat Fac Fac Robot Analysis Total . | . . . . . . . . . . Derelict Logs Recovered . | . . . . . . . . . . Drone Launches . | . . . . . . . . . . Drone Recoveries . | . . . . . . . . . . Exploration | -11 -10 -10 -9 -9 -9 -8 -8 -7 -6 ------------- Run | Yrd Mat Min Mat Min Exi Min Mat Fac Fac Turns Passed 5995 | 84 270 174 668 329 406 143 855 1981 1085 Spaces Moved 3829 | 43 197 122 390 233 319 104 500 1182 739 Core 21 | 10 . . . . . . . 10 1 Treads . | . . . . . . . . . . Legs 22 | . . . . . . . . 22 . Wheels 3374 | 33 197 122 390 233 319 104 500 1147 329 Hover . | . . . . . . . . . . Flight 412 | . . . . . . . . 3 409 Fastest Speed 50 | 50 90 90 90 105 120 120 95 98 50 Average Speed 108 | 80 90 90 109 119 120 120 104 126 79 Slowest Speed 1150 | 90 90 90 145 120 120 120 155 1150 900 Overloaded Moves . | . . . . . . . . . . Propulsion Burnouts . | . . . . . . . . . . Robots Hopped . | . . . . . . . . . . Cave-ins Triggered . | . . . . . . . . . . Exploration Rate (%) 33 | 4 41 27 40 53 63 34 31 31 15 Regions Visited 9 Branch Regions 4 Pre-discovered Areas . | . . . . . . . . . . Known Exits Taken 5 | . . . . 1 1 1 1 1 . Unknown Exits Taken 4 | 1 1 1 1 . . . . . . Scrap Searched 2 | . . 1 . 1 . . . . . Spaces Dug 23 | . . . . . . . 6 10 7 Terrain Destroyed 114 | . . . 16 . . . 23 27 48 Melee 10 | . . . . . . . . 3 7 Projectile 34 | . . . . . . . 9 14 11 AOE 70 | . . . 16 . . . 14 10 30 Terrain Rammed . | . . . . . . . . . . Walls Destroyed . | . . . . . . . . . . Machines Disabled . | . . . . . . . . . . Actions | -11 -10 -10 -9 -9 -9 -8 -8 -7 -6 --------- Run | Yrd Mat Min Mat Min Exi Min Mat Fac Fac Total 4979 | 71 246 162 523 271 332 122 698 1478 1076 Wait 429 | 1 9 15 18 17 . 19 76 90 184 Move 3820 | 42 196 121 389 232 318 103 499 1181 739 Hop . | . . . . . . . . . . Pick Up 111 | 11 8 2 26 4 1 . 14 25 20 Fast Attach 38 | 1 1 3 3 3 . . 6 19 2 Attach 60 | 6 . . 9 1 . . 5 15 24 Detach 6 | . . . . . . . 1 3 2 Swap 51 | . 4 5 4 2 4 . 13 13 6 Drop 73 | . 6 5 15 6 4 . 11 23 3 Fire 360 | 10 22 11 59 6 5 . 73 106 68 Melee 31 | . . . . . . . . 3 28 Ram . | . . . . . . . . . . Kick . | . . . . . . . . . . Crush . | . . . . . . . . . . Escape Stasis . | . . . . . . . . . . Rewire . | . . . . . . . . . . Trap . | . . . . . . . . . . Miscellaneous . | . . . . . . . . . . Route ------- -11/Scrapyard -10/Materials (discovered 2 exits: *Mat / [*Min]) -10/Mines -9/Materials (discovered 2 exits: *Mat / [*Min]) -9/Mines (discovered 2 exits: *Mat / *Exi) -9/Exiles (discovered 2 exits: *Min x2) -8/Mines -8/Materials -7/Factory (discovered 4 exits: *Fac / *Sto x2 / *Low) -6/Factory (discovered 4 exits: Fac x4) History --------- Turn | Location | Event 22 | -11/Scrapyard | Discovered new exit (range 15) 85 | -11/Scrapyard | Entered Materials 237 | -10/Materials | Discovered new exit (range 13) 276 | -10/Materials | Discovered new exit (range 16) 311 | -10/Materials | Build established: Mutant 355 | -10/Materials | Entered Mines 524 | -10/Mines | Discovered new exit (range 4) 529 | -10/Mines | Entered Materials 529 | -9/Materials | Evolved 2 slots: Utility x2 677 | -9/Materials | Discovered new exit (range 15) 1010 | -9/Materials | Lost 5 parts (1p1n1u2w) 1101 | -9/Materials | Discovered new exit (range 13) 1197 | -9/Materials | Entered Mines 1246 | -9/Mines | Build established: Scavenger-Mutant 1246 | -9/Mines | Found a damaged Exp. Sensor Array with a note attached 1249 | -9/Mines | Found Prototype Device 1249 | -9/Mines | Identified Exp. Sensor Array 1418 | -9/Mines | Discovered new exit (range 10) 1431 | -9/Mines | Identified exit to Materials 1516 | -9/Mines | Deemed a non-threat by the Exiles lab entrance 1516 | -9/Mines | Discovered new exit (range 5) 1520 | -9/Mines | Identified exit to Exiles 1526 | -9/Mines | Entered Exiles 1526 | -9/Exiles | Accompanied by 2 allies 1542 | -9/Exiles | Discovered new exit (range 15) 1556 | -9/Exiles | Led the pair of lost Derelicts to a safe place 1558 | -9/Exiles | Identified exit to Mines 1583 | -9/Exiles | Met 8R-AWN 1601 | -9/Exiles | Met EX-HEX 1642 | -9/Exiles | Met EX-BIN 1655 | -9/Exiles | Aligned with FarCom system 1656 | -9/Exiles | Given EX-Vault access code 1684 | -9/Exiles | Opened EX-Vault 1697 | -9/Exiles | Found Flying Fortress v7 1724 | -9/Exiles | Warned to stay clear of 0b10 Research branches 1740 | -9/Exiles | Exiles lab attacked by MAIN.C 1855 | -9/Exiles | Lost 3 allies 1919 | -9/Exiles | Discovered exit to Mines (range 14) 1932 | -9/Exiles | Left Exiles lab with Flying Fortress v7 1932 | -9/Exiles | Entered Mines 1977 | -8/Mines | Build established: Mutant 2028 | -8/Mines | Discovered exit to Materials (range 11) 2075 | -8/Mines | Entered Materials 2075 | -8/Materials | Evolved 2 slots: Propulsion x1, Utility x1 2167 | -8/Materials | Repaired Imp. Light Cannon 2258 | -8/Materials | Repaired Adv. Beam Cannon? 2509 | -8/Materials | Repaired Hvy. Ion Engine? 2601 | -8/Materials | Lost 4 parts (2n1u1w) 2613 | -8/Materials | Discovered new exit (range 11) 2650 | -8/Materials | Identified exit to Factory 2769 | -8/Materials | Garrison activated, responded to threat 2875 | -8/Materials | First assault squad dispatched 2930 | -8/Materials | Entered Factory 2930 | -7/Factory | Evolved 2 slots: Propulsion x1, Utility x1 3044 | -7/Factory | Lost 9 parts (2p4n1u2w) 3158 | -7/Factory | Discovered new exit (range 5) 3162 | -7/Factory | Identified exit to Storage 3437 | -7/Factory | Build established: Scavenger-Mutant 3454 | -7/Factory | Discovered new exit (range 9) 3489 | -7/Factory | Identified exit to Lower Caves 3892 | -7/Factory | Repaired Imp. Medium Armor Plating 3928 | -7/Factory | Discovered exit to Storage (range 7) 4163 | -7/Factory | Lost 3 parts (2n1u) 4441 | -7/Factory | Build established: Mutant 4832 | -7/Factory | Discovered new exit (range 8) 4837 | -7/Factory | Identified exit to Factory 4911 | -7/Factory | Entered another Factory area 4911 | -6/Factory | Evolved 2 slots: Power x1, Utility x1 5216 | -6/Factory | Build established: Hacker-Mutant 5351 | -6/Factory | Fabricated Hvy. Ion Engine? 5362 | -6/Factory | Lost 7 parts (1p3n1u2w) 5445 | -6/Factory | Garrison activated, responded to threat 5647 | -6/Factory | Core integrity fell below 50% 5703 | -6/Factory | Core integrity fell below 20% 5751 | -6/Factory | Lost 12 parts (2p3n3u4w) 5865 | -6/Factory | Identified exit to Factory 5996 | -6/Factory | Destroyed by P-60 Hacker with Shock Rifle Last Messages --------------- 05869_ Acquired Cloaking Device. 05870_ Discarded System Shield. 05877_ K-01 Serf cleans the Nuclear Reactor. 05883_ V&I>Trojan(Botnet) Trojan loaded successfully. Testing... Terminal linked with 0 systems. Awaiting botnet instructions. 05886_ Connecting with Terminal... 05894_ ALERT: Cargo convoy en route, clear transfer corridor. 05895_ Connecting with Scanalyzer... 05911_ ALERT: Rogue bot located, Programmers report to Factory Zone 4C. 05933_ Acquired Med. Storage Unit. 05961_ E&=OUWOIYM,7O8UQY#U>GE|HCF=K4E 05988_ U-05 Engineer builds a Wall. 05996_ Destroyed Shock Rifle. Map ----- +----------------------------------------------------+ | #??????????# + + """ #?????????????? | | #??????????# ######### """ #?????????????? | | #??????????# #???????#! """ #?????????????? | | #??????????####+###???????# #?????????????? | | ############# #???????# #?????????????? | | #???????# ""T"" #?????????????? | | #???????# """"" #?????????????? | | #???????# #?????????????? | | ##########+## #???????#+########?????????????? | | #?# ### ###???????# #????????????????????? | | #?# #?# #?????????# #????????????????????? | | #?# """ """ #?# #?????????# #????????????????????? | | #?# """ """ #?# #?????????# #????"???????????????? | | #?# """ """ #?# #?????????# #??""" ??????????????? | | #?# "" "" #?# #####+##### # """" ??????????????? | | #?# "" "" #?# + """" ??????????????? | | #?# ### g # """" ??????????????? | | #?############"[/ g """ #?? #?????????????? | | ?????????????#Tg """ ##/#############????????? | | ?????????????#" """ ## ! ????????? | | ?????????????## ## ????????? | | ??????????????# ## ???????? | | ??#???###???#?# ########+## ???????? | | ??# #?# ## ! # ![[??????? | | ??# """ """ #?# ## # ![ ??????? | | ??# """ """ #?# "# u@# ![ ??????? | | ??# """ """ #?# ## ! !p ??????? | | ??# #?# #########################????????? | | ??# #?# # #????????????????????????? | | ??? ??# # """#????????????????????????? | | ????? ????# + """#????????????????????????? | | #######+####### # """#????????????????????????? | | # #????????????????????????? | | #?#######????????????????????????? | | h####????????????????????????????????? | | ##+####### #???????????????????????????????????? | | #???# #???????????????????????????????????? | | #???# ??????????????????????????????????? | | #???# ????????????????????????????????? | | #???# ??????????????????????????????? | | #???###+## ?????????????????????????????? | | #????????? ?????????????????????????????? | | #??????????# ?????????????????????????????? | | #??????????? ?????????????????????????????? | | #???????????? ??????????????????????????????? | | #???????????????????????????????????????????? | | #???????????????????????????????????????????? | | #???????????????????????????????????????????? | | #???????????????????????????????????????????? | | ######???????????????????????????????????????????? | +----------------------------------------------------+ Best States ------------- Heat Dissipation 56 Energy Generation 27 Energy Capacity 330 Matter Stores 300 Matter Capacity 300 Sight Range 16 Robot Scan Range 20 Terrain Scan Range 16 Terrain Scan Density 10 ECM Strength 1 Jamming Range 12 Cloak Strength 2 Armor Coverage 375 Core Shielding 20 Evasion (%) 68 Targeting Accuracy 12 Core Analysis 6 Offensive Hacking 10 Defensive Hacking 10 Item Schematics ----------------- ECM Suite | -9/Materials | Scanalyzed Hacking Suite | -9/Materials | Scanalyzed Adv. Beam Cannon | -9/Materials | Scanalyzed Hvy. Ion Engine | -9/Materials | Scanalyzed Rocket Launcher | -9/Materials | Extracted Imp. Medium Laser | -9/Materials | Extracted Med. Armor Plating | -9/Materials | Extracted Datajack | -9/Materials | Extracted Sml. Matter Pod | -9/Materials | Extracted Shield Generator | -9/Materials | Extracted Imp. Aluminum Leg | -9/Materials | Extracted Lrg. Matter Pod | -9/Materials | Extracted EM Shotgun | -9/Materials | Extracted Imp. Light Armor Plating | -6/Factory | Scanalyzed Adv. EMP Blaster | -6/Factory | Scanalyzed Hvy. Missile Launcher | -6/Factory | Scanalyzed Robot Schematics ------------------ None Fabricated ------------ Hvy. Ion Engine | x1 | -6/Factory Alien Tech Used ----------------- None Achievements -------------- None Challenges ------------ None Game ------ Seed EtherialFortressInterrupter Manual? 0 Play Time 03:06:00 Cumulative 320.1 hours Start 2024.10.14 @ 19:13:12 End 2024.10.14 @ 22:29:13 Sessions 1 Manual Loads 0 Difficulty Rogue Special Mode None Game No. 136 Rogue 133 Adventurer 3 Explorer 0 Win Type - Total 0 Types 0/0/0/0/0/0/0/0/0 Lore% 25 Gallery% 52 Achievement% 39 Wizard Run 0 Options --------- Layout 2 ASCII 0 Keyboard 0 Movement Mouse Keybinds 0 Fullscreen 1 Font 24/Smallcaps Map View 50x44 Zoom Use 0% Tactical HUD 1 Map Filters NONE Filters NONE Steam 1 RUN: 51ba1bed-238a-4130-a76b-dc9580edc0ed